bitfinex/quotes_ETHUSD_20250802
["timestamp","ask_amount","ask_price","bid_price","bid_amount"]
[1754165393137,0.4581,3404.0,3403.7,3.0]
[1754165393336,0.4581,3404.4,3403.7,5.93797925]
[1754165393504,0.001,3405.2,3403.7,3.0]
[1754165393505,1.74115421,3403.8,3403.7,3.0]
[1754165393703,1.74115421,3403.8,3403.7,2.93797925]
[1754165393942,1.74115421,3403.8,3403.6,2.93804447]
[1754165394237,1.5852,3403.7,3403.2,3.0]
[1754165394438,1.5852,3403.7,3403.6,2.93800394]
[1754165394743,1.5852,3403.7,3403.2,3.7667]
[1754165394744,0.15595421,3403.8,3403.7,5.93797925]
[1754165396006,0.15595421,3403.8,3403.7,6.08517925]
[1754165396641,0.15595421,3403.8,3403.7,7.69737925]
[1754165396842,0.15595421,3403.8,3403.7,8.98147266]
[1754165397144,0.15595421,3403.8,3403.7,9.91514195]
[1754165397365,0.15595421,3403.8,3403.7,7.75294195]
[1754165397675,0.15595421,3403.8,3403.7,8.30294195]
[1754165397874,0.15595421,3403.8,3403.7,9.91514195]
[1754165399065,0.15595421,3403.8,3403.7,8.30294195]
[1754165399264,0.15595421,3403.8,3403.7,9.91514195]
[1754165399943,0.15595421,3403.8,3403.7,8.30294195]
[1754165400340,0.15595421,3403.8,3403.7,12.96094195]
[1754165400670,2.19925421,3403.8,3403.7,3.67207266]
[1754165401070,2.19925421,3403.8,3403.7,0.73409341]
[1754165401565,0.15595421,3403.8,3403.7,2.93797925]
[1754165401953,2.19925421,3403.8,3403.7,3.0]
[1754165402159,2.34645421,3403.8,3403.5,5.9381343]
[1754165402368,2.0433,3403.7,3403.6,3.0]
[1754165402569,0.30315421,3403.8,3403.5,0.96484001]
[1754165402761,0.15595421,3403.8,3403.7,5.93797925]
[1754165403339,2.19925421,3403.8,3403.7,3.0]
[1754165403538,2.19925421,3403.8,3403.7,5.93797925]
[1754165403871,0.15595421,3403.8,3403.7,6.88170288]
[1754165404040,0.15595421,3403.8,3403.7,13.70290288]
[1754165404244,0.15595421,3403.8,3403.7,13.85010288]
[1754165404452,0.1472,3404.8,3404.7,2.93711633]
[1754165404655,0.1472,3404.8,3404.0,2.93767916]
[1754165404656,1.5852,3405.1,3404.8,2.93697094]
[1754165404859,2.0433,3405.0,3404.4,3.1472]
[1754165405182,0.1472,3404.7,3404.6,3.0]
[1754165405382,1.7324,3404.7,3404.6,5.9372026]
[1754165405578,1.5852,3404.7,3404.6,5.9372026]
[1754165406378,0.001,3405.2,3404.9,2.93690967]
[1754165406572,0.1472,3405.1,3404.9,2.93690967]
[1754165406772,1.7324,3405.1,3405.0,5.93685756]
[1754165407085,1e-08,3405.2,3405.1,5.93677131]
[1754165407270,1e-08,3405.2,3405.1,8.09897131]
[1754165407581,0.217628,3409.3,3406.6,2.93547818]
[1754165407784,0.4581,3407.5,3406.6,5.93547818]
[1754165408083,4.681,3408.1,3407.3,2.93487512]
[1754165408084,1.5852,3407.8,3407.3,2.93487512]
[1754165408383,3.672,3410.2,3407.3,2.93487512]
[1754165408384,1.5852,3408.9,3407.6,2.93461673]
[1754165408586,1.5852,3408.9,3407.6,11.17975253]
[1754165408749,1.5852,3408.9,3407.6,12.05794212]
[1754165408949,1.5852,3408.9,3407.6,13.55112271]
[1754165409146,2.088,3409.5,3407.6,7.23992271]
[1754165409378,1.73974921,3407.7,3407.6,3.71796055]
[1754165409577,2.19784921,3407.7,3407.6,3.0]
[1754165410784,2.19784921,3407.7,3407.3,0.22597776]
[1754165410972,2.0799827,3407.6,3406.2,2.93576179]
[1754165411171,2.26675319,3407.5,3406.3,3.0]
[1754165411375,2.26675319,3407.5,3406.4,0.0071529]
[1754165411376,2.0433,3407.4,3406.4,0.0071529]
[1754165411682,2.0433,3407.4,3406.2,4.10561185]
[1754165411683,0.03668593,3407.3,3406.2,4.10561185]
[1754165411869,2.0433,3407.2,3406.2,1.10561185]
[1754165412070,0.15454921,3407.7,3406.5,3.55]
[1754165412301,0.15454921,3407.7,3407.6,6.48461673]
[1754165412490,1e-08,3407.7,3407.6,8.43819732]
[1754165413090,1e-08,3407.7,3407.6,13.15919732]
[1754165413287,1e-08,3407.7,3407.6,13.93488515]
[1754165413867,1.5852,3409.3,3409.2,3.0]
[1754165414067,1.5852,3409.6,3409.4,2.9330674]
[1754165414301,0.4581,3410.0,3408.5,2.93384186]
[1754165414302,0.4581,3410.0,3409.9,3.0]
[1754165414466,2.0433,3410.0,3409.9,3.0]
[1754165414671,2.0433,3410.0,3409.9,6.15581325]
[1754165415071,1.5852,3410.0,3409.9,6.15581325]
[1754165415276,1.5852,3410.4,3410.0,3.0]
[1754165415483,1.5852,3410.3,3410.2,3.0]
[1754165415687,1.5852,3410.3,3410.2,5.93237933]
[1754165415898,1.5852,3410.3,3410.2,3.0]
[1754165416089,1.5852,3410.3,3410.2,2.93237933]
[1754165416286,1.5852,3410.3,3410.0,5.93248537]
[1754165416473,1.5852,3410.2,3410.1,5.93246532]
[1754165417112,1.7316,3410.2,3410.1,5.93246532]
[1754165417686,0.15314421,3411.4,3410.4,2.93219238]
[1754165417888,0.1464,3410.5,3410.4,3.0]
[1754165418089,1.7316,3410.5,3409.9,0.22317593]
[1754165418279,1.7316,3410.5,3410.1,3.0]
[1754165418609,0.1464,3410.2,3409.7,3.1464]
[1754165418811,1.7316,3410.2,3410.1,3.0]
[1754165419105,0.15314421,3411.4,3409.5,3.0]
[1754165419308,0.1464,3409.9,3409.5,0.1464]
[1754165419609,1.5852,3409.8,3409.6,2.93289535]
[1754165419823,1.5852,3409.8,3409.5,0.1464]
[1754165419824,0.17316,3409.8,3409.5,0.1464]
[1754165420008,2.0433,3409.7,3409.3,0.22518353]
[1754165420197,0.1464,3409.4,3409.3,0.22518353]
[1754165420402,0.1464,3409.4,3409.3,5.93315343]
[1754165420985,0.1464,3409.4,3409.3,2.93315343]
[1754165421192,0.1464,3409.7,3409.3,0.21485975]
[1754165421391,0.1464,3409.4,3408.2,4.727]
[1754165421691,2.07996441,3409.3,3408.8,3.0]
[1754165421909,0.1464,3408.9,3408.8,3.0]
[1754165422109,0.1464,3408.9,3408.8,2.93358366]
[1754165422393,0.1464,3408.9,3408.8,5.93358366]
[1754165422791,0.1464,3408.9,3408.6,3.81513066]
[1754165422792,1.7019,3408.9,3408.5,0.73837616]
[1754165423119,1.5555,3408.8,3408.5,2.93375635]
[1754165423323,1.5555,3408.8,3408.4,0.881514]
[1754165423525,0.1464,3408.9,3408.5,0.22431067]
[1754165423710,0.1464,3408.9,3408.8,5.93358366]
[1754165423911,1.5555,3409.7,3408.9,3.0]
[1754165424114,0.1464,3409.1,3408.9,2.93344486]
[1754165424325,0.1464,3409.1,3408.6,3.1464]
[1754165424524,1.5555,3409.0,3408.5,3.15406248]
[1754165424829,0.1464,3409.4,3409.3,2.93315343]
[1754165425022,1.5555,3410.2,3409.5,2.93298137]
[1754165425323,0.1464,3409.9,3409.8,3.0]
[1754165425911,2.1551,3409.9,3408.8,2.93352869]
[1754165426110,2.26086904,3409.8,3409.0,0.881352]
[1754165426427,0.1464,3409.1,3408.8,5.93349857]
[1754165426610,0.1464,3408.9,3408.5,0.22569856]
[1754165426812,0.1464,3408.7,3408.5,2.93377917]
[1754165427018,0.1464,3408.7,3408.5,3.0]
[1754165427196,1.5555,3408.6,3408.4,0.881352]
[1754165427412,1.5555,3408.6,3408.3,3.66858563]
[1754165427612,1.5555,3408.6,3408.4,2.9338908]
[1754165427820,1.5555,3408.6,3408.3,4.61617404]
[1754165428021,1.5555,3408.5,3408.4,0.22015538]
[1754165428227,1.7019,3408.5,3408.4,0.22015538]
[1754165428834,2.1551,3408.5,3408.1,3.881599]
[1754165429037,0.5996,3408.5,3408.1,3.881599]
[1754165429236,0.5996,3408.5,3408.0,2.93425256]
[1754165429237,2.0087,3408.4,3407.7,2.93447037]
[1754165429545,0.1464,3408.2,3407.6,3.81629323]
[1754165429733,0.03667732,3408.1,3407.6,0.881729]
[1754165429935,0.1464,3407.9,3407.6,0.881729]
[1754165430115,1.7019,3407.9,3407.6,0.881729]
[1754165430310,0.1464,3407.7,3407.5,0.22425314]
[1754165430515,1.5555,3407.6,3407.1,0.7215874]
[1754165430721,0.1464,3407.4,3407.1,2.93501869]
[1754165430922,1.5555,3407.3,3407.1,1.10430778]
[1754165431245,1.5555,3407.2,3407.1,0.22257878]
[1754165431541,1.5555,3407.2,3406.7,0.1464]
[1754165431542,2.0087,3407.2,3406.7,1.028368]
[1754165431745,0.4532,3407.2,3406.7,0.1464]
[1754165431944,2.0087,3407.1,3406.2,0.58196119]
[1754165432131,2.04538809,3407.1,3406.7,0.22021676]
[1754165432447,0.1464,3406.7,3406.2,3.82765061]
[1754165432619,0.1464,3406.7,3406.3,0.882059]
[1754165432820,0.1464,3406.7,3406.4,5.93557497]
[1754165433025,0.1464,3406.7,3406.5,3.0]
[1754165433445,0.1464,3406.7,3406.6,5.93547818]
[1754165433667,1.5555,3407.4,3406.8,3.0]
[1754165433817,1.5555,3407.8,3407.2,2.93490629]
[1754165434018,0.1464,3407.3,3407.2,2.93496125]
[1754165434331,0.1464,3407.3,3407.2,3.0]
[1754165434531,0.1464,3407.3,3406.4,0.21975389]
[1754165434532,2.1551,3407.3,3406.4,0.21975389]
[1754165434729,1.59218701,3407.2,3406.6,2.93547521]
[1754165434937,1.5555,3407.2,3406.7,3.0]
[1754165435238,0.4532,3407.1,3406.7,2.93537547]
[1754165435444,1.5555,3407.0,3406.8,3.0]
[1754165435676,0.03667517,3408.3,3406.8,0.433]
[1754165435677,1.5555,3408.0,3406.8,0.433]
[1754165435974,7.05,3408.4,3406.4,0.22563897]
[1754165435975,0.1464,3407.0,3406.4,0.22563897]
[1754165436178,0.1464,3406.8,3406.4,0.22563897]
[1754165436379,1.5555,3407.6,3406.9,2.9352197]
[1754165436560,0.1464,3407.1,3406.7,3.0]
[1754165436746,0.1464,3407.1,3406.9,3.0]
[1754165436930,1.5555,3407.1,3406.9,3.0]
[1754165437129,0.1464,3407.0,3406.9,3.0]
[1754165437339,0.1464,3407.0,3406.9,2.9352197]
[1754165437769,0.1464,3407.0,3406.8,2.93529215]
[1754165437970,1.5555,3407.0,3406.8,5.93529982]
[1754165438155,1.5555,3407.0,3406.6,0.1464]
[1754165438333,1.5555,3407.0,3406.5,0.881975]
[1754165438529,1.5555,3407.0,3406.5,1.028375]
[1754165438842,0.1464,3407.1,3406.5,1.99451327]
[1754165439046,0.1464,3407.1,3407.0,5.93513354]
[1754165439667,0.4532,3408.1,3407.3,3.0]
[1754165439827,1.5555,3408.2,3407.6,2.93459407]
[1754165440173,0.1464,3407.8,3407.7,2.93453062]
[1754165440669,0.1464,3407.8,3407.4,3.1464]
[1754165440835,1.5555,3407.7,3407.6,3.0]
[1754165441032,0.1464,3407.8,3407.6,3.0]
[1754165441383,0.1464,3407.8,3407.4,0.881774]
[1754165441384,0.1464,3407.8,3407.4,3.81655208]
[1754165441732,0.1464,3407.8,3407.7,2.93453062]
[1754165442074,0.1464,3407.8,3407.4,3.881774]
[1754165442354,0.1464,3407.8,3407.7,5.93453062]
[1754165443159,0.1464,3408.2,3407.8,3.0]
[1754165443358,1.5555,3408.1,3407.8,2.93438429]
[1754165443741,0.1464,3408.2,3407.9,3.0]
[1754165444143,0.1464,3408.2,3407.9,2.93432933]
[1754165444347,1.7019,3408.2,3407.8,2.93441744]
[1754165444550,1.7019,3408.2,3407.7,3.08092846]
[1754165444930,1.7019,3408.2,3407.9,3.0]
[1754165445161,1.7019,3408.2,3407.7,3.1464]
[1754165445364,0.1464,3408.2,3407.7,0.1464]
[1754165445587,0.1464,3408.2,3407.7,3.0]
[1754165445588,0.1464,3407.8,3407.7,3.0]
[1754165445887,0.1464,3407.8,3407.7,2.93453062]
[1754165446125,0.1464,3407.8,3407.5,3.0]
[1754165446236,1.7019,3407.8,3407.6,2.93455976]
[1754165446434,1.7019,3407.8,3407.4,0.881774]
[1754165446837,1.7019,3407.8,3407.7,3.0]
[1754165447252,1.7019,3407.8,3407.4,0.881774]
[1754165447436,2.0087,3407.7,3406.8,4.717]
[1754165447634,2.0087,3407.7,3406.9,0.881898]
[1754165447635,0.1464,3407.3,3406.9,0.881898]
[1754165447843,0.1464,3407.3,3407.2,2.93496125]
[1754165448095,0.1464,3407.3,3407.2,5.93496125]
[1754165448388,21.17,3412.3,3407.3,3.0]
[1754165448389,1.5555,3408.2,3407.3,3.0]
[1754165448553,0.1464,3407.7,3407.6,3.0]
[1754165448880,0.1464,3407.7,3407.6,2.93461673]
[1754165449063,7.05,3408.4,3407.6,2.42036853]
[1754165449377,0.1464,3408.2,3408.1,5.9341862]
[1754165450251,0.1464,3408.4,3408.3,5.93397012]
[1754165450452,0.1464,3408.4,3408.3,3.0]
[1754165451036,0.1464,3408.4,3408.3,5.93401402]
[1754165451669,0.1464,3408.4,3408.3,3.0]
[1754165452276,0.1464,3408.4,3408.3,5.93401402]
[1754165452636,0.1464,3408.4,3408.3,6.14971642]
[1754165452961,0.1464,3408.4,3408.3,3.2157024]
[1754165453276,0.1464,3408.4,3408.3,6.14971642]
[1754165453476,0.1464,3408.4,3408.3,3.2157024]
[1754165454678,0.1464,3409.2,3408.3,1.5284486]
[1754165454874,0.1464,3409.2,3409.1,3.0]
[1754165455095,2.0584,3409.2,3408.6,0.1464]
[1754165455250,0.1464,3408.5,3408.3,0.2157024]
[1754165455443,0.1464,3408.5,3408.2,3.0]
[1754165455640,0.1464,3408.5,3408.4,2.93392794]
[1754165455840,0.1464,3408.5,3408.2,5.93401892]
[1754165455841,0.1464,3408.5,3408.2,5.93408001]
[1754165456077,0.1464,3408.5,3408.3,2.93398809]
[1754165456478,0.1464,3408.5,3408.3,3.15537549]
[1754165456652,0.1464,3408.5,3408.4,3.0]
[1754165456838,0.1464,3408.5,3408.3,3.2213874]
[1754165457043,1.5883,3408.5,3408.3,0.2213874]
[1754165457243,0.1464,3408.5,3408.2,5.93406346]
[1754165457444,1.4419,3408.4,3408.1,3.0]
[1754165457743,0.1464,3408.1,3407.8,2.93438243]
[1754165457995,1.5883,3408.1,3407.7,5.93452676]
[1754165458144,1.4419,3408.0,3407.6,2.93455471]
[1754165458343,0.1464,3407.9,3407.6,2.93455471]
[1754165458544,0.1464,3407.9,3407.7,2.93452183]
[1754165459243,0.1464,3407.9,3407.6,3.0]
[1754165459244,0.1464,3407.9,3407.8,5.9344445]
[1754165459893,0.1464,3407.9,3407.8,3.0]
[1754165460102,0.1464,3407.9,3407.8,5.9344445]
[1754165460474,0.1464,3407.9,3407.8,3.0]
[1754165461321,1.5883,3407.9,3407.8,3.0]
[1754165461536,1.75079763,3407.9,3407.8,3.0]
[1754165461809,2.22089763,3407.9,3407.4,0.21982275]
[1754165461978,2.22089763,3407.9,3407.3,3.0]
[1754165461979,1.4419,3407.8,3407.3,3.0]
[1754165462172,1.4419,3407.8,3407.1,3.0]
[1754165462369,0.1464,3407.5,3407.0,0.1464]
[1754165462574,0.1464,3407.1,3406.9,3.0]
[1754165462826,0.1464,3407.1,3406.8,2.93527379]
[1754165462827,0.1464,3407.1,3406.7,2.9353731]
[1754165463027,0.03668916,3407.0,3406.9,2.9352197]
[1754165463183,0.03668916,3407.0,3406.4,2.93565054]
[1754165463184,0.1464,3407.0,3406.5,0.47035172]
[1754165463372,0.1464,3407.0,3406.5,0.22044818]
[1754165463702,0.1464,3406.7,3406.2,0.74544401]
[1754165463905,4.705,3407.6,3406.0,2.93592317]
[1754165463906,1.4419,3406.6,3406.0,2.93592317]
[1754165464109,0.1464,3406.3,3405.8,4.8522]
[1754165464286,1.4419,3407.0,3405.9,1.5037]
[1754165464486,0.1464,3406.4,3406.0,3.08239139]
[1754165464686,0.1464,3406.4,3406.1,0.4632]
[1754165464881,0.1464,3406.4,3406.1,3.0]
[1754165465083,0.1464,3406.4,3406.3,2.93573672]
[1754165465286,0.4701,3407.7,3406.3,0.7035638]
[1754165465287,4.704,3407.6,3406.3,0.7035638]
[1754165465499,0.1464,3407.1,3407.0,2.93506083]
[1754165466423,3.102,3410.0,3407.0,2.93506083]
[1754165466424,8.964,3408.0,3407.3,2.93481526]
[1754165466722,0.1464,3407.5,3407.4,2.93478898]
[1754165466878,0.1464,3407.8,3407.6,2.9345608]
[1754165467079,0.1464,3407.8,3407.7,2.93453062]
[1754165467592,0.1464,3407.9,3407.8,2.93440448]
[1754165467794,0.1464,3407.9,3407.8,2.9344445]
[1754165467989,0.1464,3407.9,3407.8,3.15266615]
[1754165468189,0.1464,3407.9,3407.8,0.21822165]
[1754165468387,0.1464,3407.9,3407.7,2.93450142]
[1754165468591,0.1464,3407.9,3407.8,2.9344445]
[1754165468785,0.1464,3407.9,3407.7,2.93450015]
[1754165469012,0.1464,3407.9,3407.8,5.9344445]
[1754165469306,0.1464,3408.1,3408.0,2.93419115]
[1754165469507,0.1464,3408.1,3407.9,2.93433129]
[1754165469809,1.4419,3408.0,3407.8,3.21767461]
[1754165469991,1.5883,3407.9,3407.8,3.21767461]
[1754165470174,2.26424,3407.9,3407.8,0.21767461]
[1754165470378,2.26424,3407.9,3407.3,3.0]
[1754165470608,2.11784,3407.9,3407.5,2.93467011]
[1754165470810,0.20584,3407.9,3407.4,2.93476652]
[1754165471016,0.1464,3407.5,3407.1,3.0]
[1754165471314,0.1464,3407.7,3407.4,2.93477935]
[1754165471501,6.1409,3408.3,3407.4,2.93477935]
[1754165471502,6.1409,3408.3,3408.0,2.93424229]
[1754165472017,0.1464,3408.1,3408.0,2.93424229]
[1754165472603,2.0584,3408.1,3407.8,0.22067185]
[1754165472835,0.1464,3407.9,3407.5,2.93465517]
[1754165473131,0.1464,3407.7,3407.6,3.0]
[1754165473491,1.5883,3407.7,3407.3,0.002]
[1754165473695,0.6165,3407.7,3407.3,0.002]
[1754165473895,1.912,3407.6,3407.3,0.002]
[1754165474129,1.912,3407.6,3407.3,2.93685394]
[1754165474327,0.4701,3407.6,3407.3,2.93685394]
[1754165474510,0.1464,3407.4,3407.3,2.93685394]
[1754165474896,1.5883,3407.4,3407.3,2.93687512]
[1754165475296,0.1464,3407.4,3407.3,2.93687512]
[1754165475493,0.1464,3407.4,3407.3,0.002]
[1754165475734,0.1464,3407.4,3407.3,2.93687512]
[1754165476096,1.5883,3407.4,3407.3,2.93687512]
[1754165476308,1.5883,3407.4,3407.3,5.93687512]
[1754165476627,1.5883,3407.4,3407.3,3.002]
[1754165476798,1.5883,3407.4,3407.3,5.93687512]
[1754165477658,0.1464,3407.4,3407.3,3.002]
[1754165478012,0.1464,3407.4,3407.3,5.93687512]
[1754165478735,0.1464,3407.6,3407.3,2.93682616]
[1754165478898,1.4419,3407.5,3407.3,0.002]
[1754165479100,0.1464,3407.4,3407.3,0.002]
[1754165479300,1.5883,3407.4,3407.3,0.002]
[1754165480130,2.0584,3407.4,3407.3,0.002]
[1754165480877,2.26424,3407.4,3407.3,0.002]
[1754165481082,2.30092486,3407.4,3407.3,0.002]
[1754165481732,2.85092486,3407.4,3407.3,0.002]
[1754165482771,5.95292486,3407.4,3407.3,0.002]
[1754165482970,8.91624,3407.4,3407.3,0.002]
[1754165483731,3.55,3407.3,3404.9,3.08731869]
[1754165483967,3.55,3407.3,3404.9,3.0]
[1754165483968,3.652,3407.1,3404.9,3.0]
[1754165484165,0.1472,3405.0,3404.9,3.0]
[1754165484473,0.1472,3405.0,3404.9,3.15487311]
[1754165484685,0.4717,3406.3,3405.0,2.93684657]
[1754165484864,0.1472,3405.4,3405.3,2.93659883]
[1754165485167,0.1472,3405.4,3405.3,3.38449883]
[1754165486198,0.1472,3405.4,3404.9,0.78928059]
[1754165486492,0.1472,3405.4,3404.9,0.4479]
[1754165486635,0.1472,3405.4,3404.8,3.31006331]
[1754165486636,1.3994,3406.1,3404.8,0.22584318]
[1754165486836,0.4717,3406.5,3405.0,0.4479]
[1754165487069,1.3994,3406.7,3405.0,0.4479]
[1754165487070,0.1464,3406.0,3405.5,0.1472]
[1754165487368,0.1464,3406.0,3405.9,2.9360815]
[1754165487735,0.1464,3406.0,3405.6,3.38422937]
[1754165487968,0.1464,3406.0,3405.8,0.4479]
[1754165488132,0.1464,3406.0,3405.9,2.9360815]
[1754165488339,0.1464,3406.0,3405.9,5.9360815]
[1754165488539,0.1464,3406.0,3405.9,7.31599776]
[1754165488860,0.1464,3406.0,3405.9,4.37991626]
[1754165489060,0.1464,3406.0,3405.9,7.31599776]
[1754165489278,0.1464,3406.0,3405.9,3.4479]
[1754165489464,0.1464,3406.0,3405.9,3.0]
[1754165489949,2.0175,3406.0,3405.0,2.93682042]
[1754165490151,0.1472,3405.5,3405.3,3.0]
[1754165490375,0.1472,3405.4,3405.3,3.0]
[1754165490546,0.1472,3405.4,3405.2,2.9366839]
[1754165490874,0.1472,3405.4,3404.8,0.22000569]
[1754165491048,1.8711,3405.3,3404.2,0.4479]
[1754165491266,1.8711,3405.3,3404.6,2.93719122]
[1754165491452,0.1472,3404.6,3404.5,5.93728888]
[1754165491769,0.1472,3404.6,3404.5,3.4479]
[1754165491971,0.1472,3404.6,3404.5,3.0]
[1754165492146,0.1472,3404.6,3404.5,0.21555044]
[1754165492347,0.1472,3404.6,3404.4,3.0]
[1754165492560,0.1472,3404.6,3404.3,3.0]
[1754165492760,0.1472,3404.4,3403.8,3.34138059]
[1754165493071,0.1472,3404.2,3403.9,0.86214806]
[1754165493236,0.1472,3404.2,3403.6,3.1472]
[1754165493440,0.1472,3404.0,3403.7,2.93791977]
[1754165493669,0.1472,3404.0,3403.5,0.1472]
[1754165493866,0.1472,3403.8,3403.3,0.1472]
[1754165494177,0.03671826,3404.3,3403.3,3.21585922]
[1754165494359,0.1472,3403.5,3403.3,2.93831717]
[1754165494543,0.1472,3403.5,3403.4,5.93823823]
[1754165494855,0.1472,3403.5,3403.4,6.38613823]
[1754165495074,0.4717,3404.9,3403.5,3.0]
[1754165495255,0.1472,3403.8,3403.4,0.4479]
[1754165495456,0.1472,3403.8,3403.7,2.93797925]
[1754165495754,0.65881,3404.9,3403.9,2.93777884]
[1754165495755,0.1472,3404.0,3403.9,2.93777884]
[1754165495961,0.1472,3404.2,3404.1,2.93757931]
[1754165496387,0.1472,3404.2,3404.1,3.38547931]
[1754165497282,0.1472,3404.2,3404.1,6.38547931]
[1754165497440,0.1472,3404.2,3404.1,5.93763402]
[1754165497867,5.1547,3405.4,3404.1,4.38022628]
[1754165498067,0.1472,3404.5,3404.4,2.93729478]
[1754165498383,0.1472,3404.5,3404.4,4.27657537]
[1754165498879,0.1472,3405.2,3405.0,2.93679281]
[1754165499081,0.4717,3405.7,3404.8,3.0]
[1754165499380,1.43610425,3405.6,3404.0,3.0]
[1754165499683,0.66248043,3405.5,3404.2,3.0]
[1754165499847,0.1472,3404.2,3403.7,3.5951]
[1754165500192,0.1472,3404.2,3404.1,5.93763402]
[1754165500655,6.5591,3405.4,3404.5,3.0]
[1754165500855,0.1472,3404.5,3404.1,0.4479]
[1754165501056,1.8711,3405.4,3404.7,2.9370743]
[1754165501288,1.8711,3405.4,3404.7,5.9370743]
[1754165501289,0.1472,3404.8,3404.7,5.9370743]
[1754165501575,0.1472,3405.0,3404.9,2.9369082]
[1754165501956,0.1472,3405.0,3404.4,2.93731388]
[1754165502176,0.1472,3404.6,3404.3,2.93746144]
[1754165502378,0.1472,3404.6,3404.5,2.93728888]
[1754165503224,0.1472,3404.6,3404.2,0.34138059]
[1754165503446,0.4717,3404.8,3403.7,3.5951]
[1754165503588,0.1472,3404.3,3404.1,3.0]
[1754165504031,0.1472,3404.3,3403.8,1.15655157]
[1754165504332,0.1472,3404.3,3404.1,2.93761571]
[1754165504705,0.1472,3404.3,3404.2,5.93754773]
[1754165505939,0.1472,3404.3,3404.2,3.0]
[1754165506522,0.1472,3404.3,3404.2,5.93754773]
[1754165506722,0.1472,3404.3,3404.2,3.0]
[1754165506932,0.1472,3404.3,3404.2,5.93754773]
[1754165508057,0.1472,3404.3,3404.2,3.0]
[1754165508953,2.0183,3404.3,3404.2,3.0]
[1754165509156,2.2238015,3404.3,3404.2,3.0]
[1754165509651,2.2238015,3404.3,3403.3,1.10270909]
[1754165509823,0.1472,3403.4,3403.3,1.10270909]
[1754165510023,2.0183,3403.4,3403.3,0.21994509]
[1754165510227,2.0183,3403.4,3402.7,0.1472]
[1754165510431,0.03672905,3403.3,3402.7,0.1472]
[1754165510746,2.0183,3403.4,3402.7,0.1472]
[1754165510927,1.8711,3403.4,3402.7,2.93884228]
[1754165511123,0.1472,3402.9,3402.8,3.93665631]
[1754165511327,0.4717,3404.0,3403.0,2.9385836]
[1754165511328,0.1472,3403.3,3403.0,2.9385836]
[1754165511525,0.1472,3403.3,3403.2,5.9384109]
[1754165511849,1.3994,3404.7,3403.3,0.55]
[1754165512026,0.1472,3404.2,3404.0,2.93763944]
[1754165512237,0.1472,3404.2,3404.1,2.93763402]
[1754165512436,1.3865,3404.9,3404.0,0.34138059]
[1754165512632,1.5337,3404.1,3402.7,0.67403336]
[1754165512864,0.1472,3403.5,3402.7,0.1472]
[1754165513171,0.1472,3403.0,3402.5,0.1472]
[1754165513865,0.1472,3403.0,3402.6,2.93892905]
[1754165514066,0.1472,3403.0,3402.6,0.69081228]
[1754165514230,0.1472,3403.0,3402.5,0.1472]
[1754165514632,0.1472,3403.0,3402.6,3.38798101]
[1754165515089,0.1472,3403.0,3402.7,0.4491]
[1754165515367,0.1472,3403.0,3402.5,0.1472]
[1754165515528,0.1472,3403.0,3402.6,5.9388952]
[1754165515879,0.1472,3403.0,3402.8,3.0]
[1754165516026,1.838,3403.0,3402.5,3.21775524]
[1754165516232,1.838,3403.0,3402.3,5.93914989]
[1754165516432,0.4515,3403.5,3402.5,3.0]
[1754165516633,0.4515,3403.5,3402.4,0.4491]
[1754165516833,0.4515,3403.5,3402.5,2.93899401]
[1754165517169,1.3865,3403.7,3402.5,2.93899401]
[1754165517170,1.3865,3403.7,3402.6,0.4491]
[1754165517372,1.3865,3403.7,3402.9,3.0]
[1754165517555,0.4515,3404.0,3402.8,2.93874575]
[1754165517556,0.4515,3404.0,3402.8,2.93875024]
[1754165517786,0.4515,3404.0,3402.9,5.93860409]
[1754165518110,0.4515,3404.0,3402.7,0.39991]
[1754165518413,0.4515,3404.0,3403.2,3.0]
[1754165518583,0.4515,3404.0,3403.1,3.0]
[1754165518760,0.4515,3404.0,3402.9,2.93860247]
[1754165518963,0.6353,3404.0,3403.0,2.9385836]
[1754165519198,0.6353,3404.0,3402.9,0.49599599]
[1754165519382,1.3865,3404.2,3402.9,0.49599599]
[1754165519383,7.059,3404.4,3403.0,0.45632621]
[1754165519582,7.059,3404.4,3403.5,2.93808938]
[1754165519797,1.3865,3404.6,3403.4,10.8159455]
[1754165519998,6.0715,3405.2,3403.6,0.4491]
[1754165520174,1.3865,3405.2,3404.0,2.93765246]
[1754165520378,6.0725,3405.2,3404.3,2.93744724]
[1754165521303,6.0725,3405.2,3404.1,0.4491]
[1754165521608,6.0725,3405.2,3404.3,2.93741072]
[1754165521768,0.6524,3405.1,3404.4,2.93732402]
[1754165522204,1.3865,3405.7,3404.6,0.55]
[1754165522425,1.838,3406.3,3404.9,3.55]
[1754165522706,0.4515,3406.7,3405.2,0.55]
[1754165522896,0.4515,3406.7,3405.9,2.93600328]
[1754165523081,0.4515,3406.7,3405.9,2.93606515]
[1754165523282,1.60699347,3406.6,3404.9,0.4491]
[1754165523483,0.4515,3406.5,3404.7,3.0]
[1754165523687,0.001,3407.4,3405.7,13.7449607]
[1754165523688,1.3865,3407.0,3405.7,13.7449607]
[1754165523888,0.4515,3406.9,3405.8,3.4491]
[1754165524109,0.4515,3406.9,3405.8,0.00716485]
[1754165524410,0.4515,3406.9,3405.9,2.93601973]
[1754165524715,1.42319132,3406.8,3405.7,0.7317432]
[1754165524898,0.63896913,3406.7,3405.6,3.0]
[1754165525216,1.87469347,3406.6,3405.2,4.694]
[1754165525403,1.838,3406.6,3405.5,2.93635593]
[1754165526236,0.1472,3405.8,3405.5,2.93635593]
[1754165526435,0.1472,3405.8,3405.3,3.1472]
[1754165526436,0.03768486,3407.4,3405.3,3.1472]
[1754165526601,0.03768486,3407.4,3405.2,5.43295322]
[1754165526602,0.1464,3406.5,3406.0,0.1464]
[1754165527287,0.1464,3406.1,3405.7,3.0]